bitfinex/quotes_SOLUSD_20260124
["timestamp","ask_amount","ask_price","bid_price","bid_amount"]
[1769294883230,2.90547283,127.54,127.51,10.71761676]
[1769294884828,2.90547283,127.54,127.49,24.59151164]
[1769294885432,2.90547283,127.54,127.5,2.8753624]
[1769294885729,2.90547283,127.54,127.51,2.8753624]
[1769294892537,0.1,127.55,127.51,2.8753624]
[1769294894638,2.63705564,127.54,127.51,2.8753624]
[1769294907847,0.1,127.55,127.52,2.80673779]
[1769294908343,0.1,127.55,127.51,2.80673779]
[1769294910031,2.63705564,127.54,127.51,2.80673779]
[1769294915871,2.63705564,127.54,127.5,2.76349818]
[1769294916155,2.78235375,127.53,127.49,7.84374626]
[1769294916339,2.78235375,127.52,127.48,4.86986251]
[1769294916658,4.88871808,127.53,127.49,2.76349818]
[1769294917463,2.78235375,127.52,127.49,2.76349818]
[1769294922272,2.78235375,127.52,127.47,7.84473762]
[1769294922472,2.78235375,127.51,127.46,4.86986251]
[1769294922668,2.78235375,127.51,127.46,2.76349818]
[1769294923170,2.78235375,127.51,127.47,7.8446722]
[1769294923847,2.78235375,127.51,127.48,2.76349818]
[1769294924571,7.84096315,127.54,127.5,2.76349818]
[1769294924572,2.78235375,127.54,127.5,2.76349818]
[1769294925961,2.78235375,127.54,127.51,2.76349818]
[1769294927974,2.88235375,127.55,127.52,2.76349818]
[1769294931678,4.98871808,127.55,127.52,2.76349818]
[1769294932278,2.20636433,127.55,127.52,2.76349818]
[1769294933376,4.98871808,127.55,127.52,2.76349818]
[1769294936877,2.78235375,127.54,127.51,2.76349818]
[1769294937376,4.98871808,127.55,127.51,2.76349818]
[1769294938280,2.78235375,127.54,127.51,2.76349818]
[1769294950790,2.87254725,127.55,127.51,10.60600713]
[1769294951090,2.87254725,127.55,127.52,2.6980798]
[1769294955184,2.37254725,127.55,127.52,2.6980798]
[1769294958597,2.9995443,127.56,127.52,2.6980798]
[1769294958783,2.8995443,127.55,127.52,2.6980798]
[1769294974935,2.8995443,127.55,127.51,2.9873051]
[1769294982835,2.88504166,127.56,127.51,2.9873051]
[1769294983137,0.1,127.56,127.52,2.9873051]
[1769294983321,0.1,127.57,127.54,2.9873051]
[1769294984818,0.1,127.57,127.55,2.9873051]
[1769294985141,0.1,127.57,127.56,2.9873051]
[1769294985326,2.88504166,127.59,127.56,2.9873051]
[1769294997447,0.1,127.6,127.56,2.9873051]
[1769294997652,2.88504166,127.6,127.57,2.9873051]
[1769295002553,2.88504166,127.6,127.56,2.73448501]
[1769295007261,2.96167601,127.59,127.56,2.73448501]
[1769295014762,32.96167601,127.59,127.56,2.73448501]
[1769295023658,30.0,127.59,127.56,2.73448501]
[1769295024570,26.95113923,127.59,127.57,2.78551854]
[1769295025268,29.79873292,127.59,127.57,2.78551854]
[1769295030672,2.84759369,127.58,127.55,10.62537189]
[1769295030872,2.84759369,127.58,127.55,12.72970759]
[1769295032076,2.84759369,127.58,127.56,2.78551854]
[1769295032259,26.95113923,127.59,127.56,2.78551854]
[1769295034086,26.95113923,127.59,127.57,2.99973044]
[1769295051404,29.71690882,127.59,127.56,2.99973044]
[1769295070737,26.95113923,127.59,127.56,2.99973044]
[1769295071431,29.91765437,127.59,127.56,2.99973044]
[1769295078755,26.95113923,127.59,127.56,2.99973044]
[1769295085340,29.90472372,127.59,127.56,2.99973044]
[1769295096672,23.51895995,127.59,127.56,7.83919874]
[1769295097350,23.51895995,127.59,127.55,9.94416969]
[1769295097541,23.51895995,127.59,127.56,50.34146802]
[1769295098144,23.51895995,127.59,127.56,42.50204311]
[1769295099445,0.1,127.6,127.58,2.10438652]
[1769295099644,0.1,127.63,127.59,2.10438652]
[1769295099860,0.1,127.64,127.62,2.10438652]
[1769295100069,0.1,127.64,127.58,11.21085101]
[1769295100070,0.1,127.64,127.63,2.10438652]
[1769295100250,0.1,127.66,127.63,2.10438652]
[1769295101252,0.1,127.66,127.64,2.10438652]
[1769295101451,3.05277549,127.66,127.61,2.10438652]
[1769295102464,3.05277549,127.66,127.61,9.94061886]
[1769295105552,3.05277549,127.66,127.62,2.10438652]
[1769295105866,3.05277549,127.66,127.61,9.98052463]
[1769295110678,3.05277549,127.66,127.61,0.03990577]
[1769295110861,3.05277549,127.66,127.61,2.10438652]
[1769295111157,3.05277549,127.66,127.6,10.06930353]
[1769295111473,2.20438652,127.66,127.6,2.10438652]
[1769295111681,2.95277549,127.65,127.6,2.10438652]
[1769295117083,2.95277549,127.65,127.6,2.28637905]
[1769295119774,2.95277549,127.64,127.59,8.04490312]
[1769295120082,2.95277549,127.64,127.57,19.59651954]
[1769295120083,2.95277549,127.62,127.57,2.10438652]
[1769295120281,2.95277549,127.62,127.56,40.60516244]
[1769295120463,2.95277549,127.61,127.56,42.70954896]
[1769295120865,2.95277549,127.61,127.56,40.39765659]
[1769295122066,2.95277549,127.61,127.56,50.56549236]
[1769295123087,2.95277549,127.61,127.56,42.7260925]
[1769295123290,2.95277549,127.61,127.56,42.50204311]
[1769295125290,2.95277549,127.61,127.56,42.75803542]
[1769295126183,2.95277549,127.61,127.56,42.50204311]
[1769295132704,2.95277549,127.6,127.56,40.71339693]
[1769295134411,2.95277549,127.6,127.56,40.39765659]
[1769295137210,2.95277549,127.6,127.56,40.74808319]
[1769295137412,2.95277549,127.6,127.56,42.85246971]
[1769295139410,2.95277549,127.6,127.56,40.74808319]
[1769295139783,2.95277549,127.6,127.56,40.76786623]
[1769295139990,2.95277549,127.6,127.56,42.87225275]
[1769295140407,2.95277549,127.6,127.56,50.71161106]
[1769295146711,2.95277549,127.6,127.57,0.41375066]
[1769295178049,2.95277549,127.6,127.56,48.2370149]
[1769295178254,2.95277549,127.6,127.56,40.9713033]
[1769295178847,2.95277549,127.6,127.56,48.81074123]
[1769295188864,2.95277549,127.6,127.57,0.61988669]
[1769295189164,2.95277549,127.6,127.56,48.85698121]
[1769295218691,2.95277549,127.6,127.56,8.45932462]
[1769295219109,2.95277549,127.6,127.56,8.34932462]
[1769295242130,2.95277549,127.6,127.52,11.21085101]
[1769295242334,3.28907136,127.58,127.51,3.13121816]
[1769295242516,3.28907136,127.55,127.51,3.13121816]
[1769295243230,3.28907136,127.55,127.51,13.0776843]
[1769295243431,3.28907136,127.55,127.51,10.97331024]
[1769295244231,3.28907136,127.55,127.51,13.0776843]
[1769295249245,3.28907136,127.55,127.51,10.97331024]
[1769295254140,3.28907136,127.55,127.51,13.0776843]
[1769295256746,3.28907136,127.55,127.51,10.97331024]
[1769295270061,3.28907136,127.55,127.52,3.2077315]
[1769295279473,3.28907136,127.55,127.51,0.09273394]
[1769295279677,3.28907136,127.55,127.51,3.49962431]
[1769295293956,3.28907136,127.55,127.52,3.40689037]
[1769295297276,3.3168406,127.58,127.54,3.40689037]
[1769295297784,3.3168406,127.58,127.54,5.51285493]
[1769295298158,2.8168406,127.58,127.54,3.40689037]
[1769295298359,2.8168406,127.58,127.54,5.51285493]
[1769295298561,2.10596456,127.63,127.58,3.40689037]
[1769295298786,2.10596456,127.64,127.58,3.40689037]
[1769295298986,2.10596456,127.64,127.59,3.40689037]
[1769295299186,2.20596456,127.66,127.6,3.40689037]
[1769295299389,2.10596456,127.65,127.6,3.40689037]
[1769295300185,3.3168406,127.63,127.58,3.40689037]
[1769295300385,5.42280516,127.61,127.56,3.40689037]
[1769295300573,3.3168406,127.61,127.57,3.40689037]
[1769295300974,3.3168406,127.61,127.57,2.10596456]
[1769295301287,3.3168406,127.61,127.58,3.40689037]
[1769295333510,3.45321507,127.62,127.59,3.30056681]
[1769295335507,3.45321507,127.62,127.58,11.13873005]
[1769295339612,3.45321507,127.62,127.59,3.30056681]
[1769295365038,3.45321507,127.62,127.58,3.42048555]
[1769295365246,3.45321507,127.62,127.57,11.25921177]
[1769295365843,3.4971802,127.61,127.58,3.42048555]
[1769295367648,3.4971802,127.61,127.57,3.42048555]
[1769295371848,3.4971802,127.61,127.56,52.96337694]
[1769295372050,3.4971802,127.61,127.56,11.39993526]
[1769295375649,3.4971802,127.61,127.56,13.50363642]
[1769295379053,3.4971802,127.61,127.57,3.56096632]
[1769295380754,3.52613002,127.6,127.57,3.56096632]
[1769295457724,3.33267856,127.59,127.53,7.83522145]
[1769295458022,3.33267856,127.57,127.54,3.61969591]
[1769295458228,3.33267856,127.57,127.55,3.61969591]
[1769295458618,3.33267856,127.57,127.54,13.56460638]
[1769295466333,3.33267856,127.59,127.55,5.72403108]
[1769295466713,3.33267856,127.59,127.56,3.61969591]
[1769295467537,3.33267856,127.59,127.55,5.72403108]
[1769295467939,3.33267856,127.59,127.55,3.61969591]
[1769295477738,3.33267856,127.59,127.54,7.8405753]
[1769295477940,3.33267856,127.59,127.54,11.46027121]
[1769295478145,3.33267856,127.58,127.54,11.46027121]
[1769295478746,3.33267856,127.57,127.53,3.61969591]
[1769295479044,3.33267856,127.56,127.52,3.61969591]
[1769295479246,3.33267856,127.56,127.52,11.46144319]
[1769295479547,3.33267856,127.56,127.52,3.61969591]
[1769295484246,3.33267856,127.56,127.52,5.72403108]
[1769295484425,3.33267856,127.56,127.52,3.61969591]
[1769295489753,3.33267856,127.56,127.51,13.43368801]
[1769295490562,3.33267856,127.56,127.51,10.0394314]
[1769295490858,3.33267856,127.56,127.52,5.49859178]
[1769295496464,3.33267856,127.56,127.52,13.3404694]
[1769295499850,3.33267856,127.56,127.52,5.49859178]
[1769295500147,3.33267856,127.56,127.52,13.34048122]
[1769295505372,3.64336894,127.57,127.54,3.43137981]
[1769295530604,3.64336894,127.57,127.52,9.94716309]
[1769295530785,3.64336894,127.57,127.53,3.48838033]
[1769295536204,3.64336894,127.57,127.54,3.48838033]
[1769295536587,3.60769135,127.6,127.56,3.48838033]
[1769295537879,3.60769135,127.59,127.56,3.48838033]
[1769295541411,3.60769135,127.6,127.57,3.48838033]
[1769295542705,2.10527365,127.62,127.58,3.41068508]
[1769295542706,3.46338687,127.62,127.58,3.41068508]
[1769295543986,3.46338687,127.62,127.59,3.41068508]
[1769295559638,3.46338687,127.62,127.58,3.47780329]
[1769295575057,3.46338687,127.62,127.58,13.42101387]
[1769295575443,3.46338687,127.62,127.58,5.58307694]
[1769295578846,3.46338687,127.62,127.58,3.47780329]
[1769295579050,3.46338687,127.62,127.58,5.58161241]
[1769295581440,3.46338687,127.62,127.58,3.47780329]
[1769295585161,3.46338687,127.62,127.58,11.31595229]
[1769295597962,3.46338687,127.62,127.59,3.43238279]
[1769295612969,3.46338687,127.62,127.6,3.30665713]
[1769295613562,3.46459495,127.63,127.6,3.30665713]
[1769295616270,3.46459495,127.64,127.61,3.30665713]
[1769295616449,3.46459495,127.64,127.62,3.30665713]
[1769295620279,2.20380912,127.66,127.62,3.30665713]
[1769295620484,5.66840407,127.66,127.62,3.30665713]
[1769295620778,3.46459495,127.65,127.62,3.30665713]
[1769295621780,0.1,127.66,127.63,3.30665713]
[1769295622075,0.1,127.66,127.64,3.30665713]
[1769295626893,0.1,127.66,127.64,5.41046625]
[1769295628794,0.1,127.66,127.65,3.30665713]
[1769295629088,0.1,127.67,127.65,5.41046625]
[1769295629482,0.1,127.67,127.65,13.24425209]
[1769295633281,0.1,127.68,127.66,13.23457152]
[1769295634694,0.1,127.68,127.66,5.4012643]
[1769295638496,0.1,127.68,127.66,13.23453552]
[1769295638999,0.1,127.68,127.66,13.23183062]
[1769295639899,0.1,127.69,127.68,3.29745518]
[1769295640103,15.06691551,127.7,127.68,2.63875745]
[1769295640582,15.06691551,127.7,127.68,9.93307318]
[1769295641287,15.06691551,127.7,127.68,2.10110422]
[1769295641979,18.48936742,127.7,127.67,13.2309793]
[1769295643798,18.48936742,127.7,127.67,11.12987508]
[1769295643985,18.48936742,127.7,127.67,13.2309793]
[1769295652701,18.48936742,127.7,127.68,2.10110422]
[1769295654882,18.48936742,127.7,127.67,13.2309793]
[1769295656285,18.48936742,127.7,127.68,2.10110422]
[1769295657702,18.48936742,127.7,127.67,13.2309793]
[1769295662907,18.48936742,127.7,127.68,2.10110422]
[1769295663511,3.34245022,127.69,127.67,11.12987508]
[1769295663718,3.34245022,127.69,127.65,115.59027307]
[1769295663907,3.34245022,127.68,127.63,13.59267287]
[1769295664615,3.34245022,127.68,127.63,5.75773592]
[1769295671512,3.34245022,127.68,127.64,2.10110422]
[1769295675526,3.34245022,127.68,127.64,5.65796308]
[1769295679224,3.34245022,127.68,127.63,11.39196609]
[1769295679426,3.49272242,127.67,127.63,13.49307031]
[1769295681228,3.49272242,127.67,127.63,5.65796308]
[1769295681630,3.49272242,127.67,127.64,2.10110422]
[1769295685435,3.49272242,127.67,127.63,5.65796308]
[1769295689840,3.49272242,127.67,127.64,2.10110422]
[1769295690540,3.49272242,127.64,127.61,29.14575457]
[1769295690842,3.49272242,127.64,127.61,32.70261343]
[1769295691639,3.49272242,127.64,127.61,30.60150921]
[1769295692841,3.49272242,127.64,127.61,27.04465035]
[1769295693940,3.46775648,127.63,127.61,27.04465035]
[1769295695736,3.46775648,127.63,127.59,27.11961135]
[1769295697848,3.46775648,127.63,127.59,23.84110422]
[1769295698151,3.46775648,127.63,127.6,3.27850713]
[1769295704362,3.46775648,127.63,127.61,3.27850713]
[1769295704660,3.46775648,127.63,127.6,5.38193814]
[1769295704830,3.46775648,127.63,127.6,3.27850713]
[1769295709461,11.30297042,127.63,127.6,3.27850713]
[1769295709760,3.46775648,127.63,127.6,3.27850713]
[1769295716156,7.83527398,127.63,127.6,3.27850713]
[1769295716363,3.46775648,127.62,127.59,3.27850713]
[1769295720364,3.46775648,127.61,127.59,3.27850713]
[1769295720572,5.57118749,127.61,127.58,3.27850713]
[1769295720868,3.46775648,127.6,127.57,3.27850713]
[1769295721373,3.46775648,127.59,127.56,21.74]
[1769295721574,3.46775648,127.59,127.56,25.01850713]
[1769295721955,3.46775648,127.59,127.56,3.27850713]
[1769295723067,13.18006105,127.6,127.56,3.27850713]
[1769295728376,3.23933211,127.59,127.56,3.27850713]
[1769295730381,13.18006105,127.6,127.56,3.27850713]
[1769295731464,3.23933211,127.59,127.56,3.27850713]
[1769295733796,11.07711036,127.59,127.56,3.27850713]
[1769295734712,13.18054137,127.59,127.56,3.27850713]
[1769295735713,11.07711036,127.59,127.56,3.27850713]
[1769295737613,3.23933211,127.59,127.56,3.27850713]
[1769295740919,3.1715548,127.58,127.55,44.69124536]
[1769295741216,3.1715548,127.58,127.55,42.58781435]
[1769295744219,3.1715548,127.58,127.55,44.69124536]
[1769295747924,3.1715548,127.58,127.55,41.51601919]
[1769295748126,3.1715548,127.58,127.56,3.17522617]
[1769295748304,3.1715548,127.58,127.56,1.90995865]
[1769295748507,3.1715548,127.58,127.56,0.78518257]
[1769295760925,3.1715548,127.58,127.55,2.90025583]
[1769295761130,2.9220763,127.57,127.55,2.90025583]
[1769295761909,2.9220763,127.57,127.53,2.90025583]
[1769295762225,2.9220763,127.56,127.53,2.90025583]
[1769295762404,2.9220763,127.55,127.52,42.57078788]
[1769295763020,10.76221624,127.55,127.52,42.57078788]
[1769295763419,2.9220763,127.54,127.52,39.67053205]
[1769295763624,2.9220763,127.53,127.51,0.09273394]
[1769295764115,2.9220763,127.53,127.5,3.10025583]
[1769295764523,2.9220763,127.52,127.5,0.2]
[1769295765032,2.9220763,127.51,127.48,5.00517916]
[1769295767834,2.9220763,127.5,127.47,42.51301273]
[1769295768014,2.9220763,127.5,127.48,2.90025583]
[1769295768216,2.9220763,127.5,127.47,2.30492333]
[1769295770129,2.9220763,127.5,127.48,2.90025583]
[1769295774115,2.9220763,127.5,127.48,5.00517916]
[1769295774734,2.9220763,127.52,127.49,2.90025583]
[1769295774910,2.9220763,127.54,127.5,2.10492333]
[1769295775117,10.76246755,127.55,127.52,2.10492333]
[1769295775310,2.9220763,127.54,127.47,10.14980643]
[1769295775516,2.9220763,127.54,127.51,2.10492333]
[1769295776936,10.76281116,127.54,127.51,5.00517916]
[1769295778141,10.76281116,127.54,127.51,2.90025583]
[1769295780245,2.9220763,127.53,127.51,2.90025583]
[1769295785749,2.9220763,127.53,127.5,2.6482523]
[1769295785950,2.76046503,127.52,127.5,2.6482523]
[1769295786130,2.76046503,127.52,127.49,2.6482523]
[1769295786747,2.76046503,127.52,127.49,2.7482523]
[1769295796859,2.58664547,127.53,127.5,2.83446607]
[1769295805967,10.42794479,127.53,127.5,2.83446607]
[1769295807372,2.58664547,127.53,127.5,2.83446607]
[1769295807546,2.58664547,127.52,127.5,2.83446607]
[1769295808268,2.58664547,127.52,127.49,2.93446607]
[1769295808568,2.58664547,127.51,127.49,0.1]
[1769295813159,2.652181,127.49,127.47,0.2]
[1769295813360,2.652181,127.48,127.47,0.2]
[1769295813555,10.4983952,127.45,127.44,1e-08]
[1769295813752,10.4983952,127.45,127.43,0.2]
[1769295813753,2.652181,127.44,127.43,0.2]
[1769295814065,2.652181,127.45,127.43,2.8754993]
[1769295814264,2.652181,127.53,127.45,2.6754993]
[1769295814578,4.75710433,127.47,127.43,2.8754993]
[1769295815270,2.652181,127.46,127.43,2.8754993]
[1769295815475,2.652181,127.47,127.43,2.8754993]
[1769295815676,12.59976768,127.51,127.46,2.6754993]
[1769295815877,2.10492333,127.49,127.47,2.6754993]
[1769295816052,4.75710433,127.5,127.47,2.6754993]
[1769295816456,4.75710433,127.5,127.44,2.10492333]
[1769295816457,2.652181,127.49,127.44,2.6754993]
[1769295816755,2.10492333,127.5,127.43,2.8754993]
[1769295816756,4.75710433,127.46,127.43,2.8754993]
[1769295818783,4.75710433,127.47,127.43,2.8754993]
[1769295819705,2.652181,127.47,127.43,2.8754993]
[1769295819985,11.13487837,127.52,127.47,2.6754993]
[1769295820182,2.652181,127.52,127.48,4.78042263]
[1769295820378,2.652181,127.51,127.48,2.6754993]
[1769295820554,2.652181,127.5,127.46,2.6754993]
[1769295820884,4.76007646,127.5,127.46,2.6754993]
[1769295821468,2.652181,127.5,127.46,2.10789546]
[1769295821667,2.652181,127.5,127.47,2.6754993]
[1769295823389,2.652181,127.49,127.45,2.6754993]
[1769295823688,2.652181,127.48,127.45,2.6754993]
[1769295825281,2.652181,127.48,127.43,0.2]
[1769295825282,2.652181,127.46,127.43,2.8754993]
[1769295826280,2.652181,127.46,127.43,4.98339476]
[1769295826500,2.652181,127.48,127.45,2.6754993]
[1769295828564,2.652181,127.48,127.45,4.78339476]
[1769295829083,2.652181,127.48,127.45,2.6754993]
[1769295829281,2.652181,127.48,127.44,4.78339476]
[1769295830177,10.49552119,127.5,127.46,2.6754993]
[1769295830363,2.652181,127.5,127.46,4.78339476]
[1769295830564,2.652181,127.5,127.46,2.6754993]
[1769295830776,4.76007646,127.5,127.46,2.6754993]
[1769295830979,2.652181,127.5,127.46,2.6754993]
[1769295831584,2.652181,127.51,127.47,2.6754993]
[1769295831789,2.652181,127.51,127.48,2.6754993]
[1769295834387,2.652181,127.53,127.5,2.6754993]
[1769295834590,2.652181,127.53,127.5,2.28353074]
[1769295835381,2.652181,127.52,127.48,2.10789546]
[1769295836695,2.652181,127.52,127.49,2.6754993]
[1769295837871,4.76007646,127.52,127.49,2.6754993]
[1769295838067,2.652181,127.49,127.45,2.10789546]
[1769295838402,2.652181,127.48,127.45,2.6754993]
[1769295838769,4.76007646,127.49,127.45,2.6754993]
[1769295839387,2.652181,127.49,127.45,2.6754993]
[1769295840495,4.76007646,127.49,127.45,2.6754993]
[1769295841577,2.652181,127.49,127.45,4.78339476]
[1769295841881,2.652181,127.52,127.48,4.78339476]
[1769295842070,2.652181,127.52,127.49,4.78339476]
[1769295843895,2.652181,127.52,127.49,2.6754993]
[1769295844092,12.73223729,127.54,127.5,2.71942642]
[1769295844282,2.78325853,127.54,127.51,2.71942642]
[1769295846297,2.78325853,127.54,127.5,4.82732188]
[1769295846679,2.78325853,127.53,127.5,2.71942642]
[1769295847901,2.78325853,127.53,127.5,4.82732188]
[1769295850605,2.78325853,127.53,127.49,4.82732188]
[1769295855806,2.78325853,127.53,127.5,2.10789546]
[1769295856308,2.78325853,127.53,127.5,4.78211966]
[1769295856517,2.78325853,127.53,127.5,2.6742242]
[1769295856706,2.61249002,127.54,127.51,4.78211966]
[1769295857005,2.61249002,127.54,127.52,2.10789546]
[1769295857905,2.61249002,127.54,127.51,4.78211966]
[1769295861005,2.61249002,127.54,127.51,2.6742242]
[1769295864298,4.72038548,127.54,127.51,2.6742242]
[1769295869635,2.61249002,127.54,127.51,2.6742242]
[1769295871722,2.51982476,127.54,127.51,2.6742242]
[1769295872626,2.10789546,127.55,127.52,2.50727445]
[1769295872926,7.45198402,127.58,127.53,2.50727445]
[1769295873104,2.10789546,127.57,127.53,2.50727445]
[1769295873724,4.53837057,127.57,127.53,2.50727445]
[1769295876010,2.43047511,127.56,127.53,2.50727445]
[1769295877421,2.10789546,127.54,127.51,2.50727445]
[1769295877600,4.53837057,127.55,127.51,2.50727445]
[1769295878534,2.43047511,127.55,127.51,2.50727445]
[1769295884111,2.43047511,127.54,127.51,2.50727445]
[1769295885632,2.43047511,127.51,127.48,2.50727445]
[1769295885813,2.43047511,127.53,127.5,2.50727445]
[1769295886017,2.43047511,127.54,127.51,2.50727445]
[1769295887230,4.53649829,127.55,127.51,7.84247981]
[1769295887430,2.43047511,127.55,127.52,2.50727445]
[1769295888136,2.43047511,127.54,127.5,10.35020317]
[1769295888529,2.43047511,127.54,127.5,7.84292872]
[1769295888828,2.43047511,127.54,127.51,2.50727445]
[1769295889030,2.43047511,127.54,127.51,10.34978477]
[1769295890637,2.43047511,127.54,127.51,2.50727445]
[1769295893838,4.53649829,127.55,127.52,2.50727445]
[1769295894052,2.43047511,127.55,127.51,2.50727445]
[1769295894221,2.43047511,127.54,127.51,2.50727445]
[1769295896148,2.43047511,127.54,127.5,2.50727445]
[1769295896325,2.43047511,127.51,127.48,2.50727445]
[1769295896519,4.53649829,127.51,127.48,2.50727445]
[1769295896714,2.43047511,127.5,127.48,2.50727445]
[1769295897035,4.53649829,127.5,127.47,42.26850492]
[1769295900149,2.10602318,127.5,127.48,2.50727445]
[1769295900350,4.53649829,127.51,127.48,2.50727445]
[1769295904471,2.10602318,127.5,127.48,2.50727445]
[1769295904942,4.53649829,127.51,127.48,2.50727445]
[1769295907568,4.53649829,127.51,127.48,10.35163323]
[1769295908063,4.53649829,127.51,127.48,2.50727445]
[1769295912470,2.48902209,127.53,127.49,2.54468358]
[1769295913570,4.59504527,127.53,127.49,2.54468358]
[1769295916693,4.59504527,127.53,127.49,7.84347558]
[1769295916890,4.59504527,127.53,127.5,2.54468358]
[1769295919103,2.10602318,127.52,127.5,2.54468358]
[1769295920001,2.48902209,127.53,127.5,2.54468358]
[1769295920310,2.10602318,127.52,127.5,2.54468358]
[1769295922205,2.48902209,127.53,127.5,2.54468358]
[1769295922410,2.10602318,127.52,127.5,2.54468358]
[1769295925094,4.59504527,127.55,127.51,2.54468358]
[1769295927619,4.59504527,127.55,127.51,7.84239881]
[1769295927788,4.59504527,127.55,127.52,2.54468358]
[1769295931710,4.59504527,127.56,127.52,2.54468358]
[1769295932707,4.59504527,127.56,127.53,2.46912141]
[1769295933193,2.48902209,127.56,127.53,2.46912141]
[1769295935091,2.49529356,127.57,127.54,2.46912141]
[1769295936906,4.60131674,127.6,127.56,2.46912141]
[1769295937225,2.49529356,127.56,127.52,2.46912141]
[1769295937510,4.60131674,127.56,127.52,2.46912141]
[1769295942515,2.10602318,127.56,127.52,2.46912141]
[1769295942711,2.49529356,127.55,127.52,2.46912141]
[1769295943019,7.83847659,127.58,127.51,2.46912141]
[1769295943020,4.60119174,127.54,127.51,2.46912141]
[1769295944100,2.49529356,127.54,127.51,2.46912141]
[1769295944516,2.49529356,127.54,127.52,2.46912141]
[1769295944718,4.60119174,127.58,127.53,2.46912141]
[1769295945025,2.49529356,127.58,127.54,2.46912141]
[1769295945708,2.49529356,127.58,127.55,2.46912141]
[1769295946704,4.60119174,127.6,127.56,2.46912141]
[1769295947223,2.49529356,127.59,127.56,2.46912141]
[1769295947725,2.49529356,127.6,127.57,2.46912141]
[1769295951920,2.49529356,127.6,127.55,9.94585359]
[1769295952226,2.49529356,127.6,127.56,2.46912141]
[1769295953238,2.10589818,127.6,127.56,2.46912141]
[1769295953531,2.49529356,127.59,127.56,2.46912141]
[1769295954225,2.49529356,127.58,127.54,2.46912141]
[1769295954529,2.49529356,127.58,127.54,4.57501959]
[1769295954715,2.49529356,127.57,127.54,2.46912141]
[1769295955932,4.60119174,127.58,127.54,2.46912141]
[1769295956233,2.49529356,127.58,127.55,2.46912141]
[1769295963646,2.36943097,127.56,127.53,2.30818294]
[1769295974566,2.37146913,127.55,127.52,10.15204385]
[1769295975064,2.37146913,127.55,127.53,2.31041705]
[1769295977569,2.37146913,127.55,127.5,31.91324521]
[1769295977861,2.37146913,127.53,127.5,2.31041705]
[1769295979076,4.47736731,127.53,127.5,2.31041705]
[1769295980778,2.37146913,127.52,127.5,2.31041705]
[1769295981268,2.37146913,127.5,127.47,2.31041705]
[1769295981774,4.47736731,127.5,127.47,2.31041705]
[1769295983072,4.47736731,127.51,127.47,7.84496423]
[1769295983378,4.47736731,127.51,127.48,2.31041705]
[1769295988271,2.37146913,127.5,127.48,2.31041705]
[1769295994484,4.47736731,127.5,127.47,2.44113968]
[1769295994785,4.59858739,127.49,127.46,2.44113968]
[1769295995175,2.10589818,127.49,127.46,2.44113968]
[1769295995357,2.49268921,127.48,127.46,2.44113968]
[1769295996189,2.49268921,127.48,127.45,2.44113968]
[1769295996190,2.49268921,127.47,127.45,2.44113968]
[1769295996662,2.49268921,127.47,127.44,39.1623432]
[1769295996859,4.59858739,127.47,127.44,41.60348288]
[1769295997888,4.59858739,127.48,127.45,2.44113968]
[1769295998086,2.49268921,127.48,127.45,2.44113968]
[1769295998877,7.84282461,127.51,127.46,2.44113968]
[1769295998878,2.49268921,127.49,127.46,2.44113968]
[1769295999280,2.49268921,127.49,127.47,2.44113968]
[1769295999485,2.49268921,127.5,127.47,2.44113968]
[1769296004994,2.49268921,127.49,127.47,2.44113968]
[1769296013502,4.60034349,127.5,127.47,2.44113968]
[1769296013691,27.07121002,127.54,127.47,2.44113968]
[1769296013692,2.49268921,127.51,127.47,2.44113968]
[1769296013896,2.49268921,127.51,127.48,2.44113968]
[1769296015006,2.49268921,127.53,127.5,2.44113968]
[1769296015188,2.49268921,127.53,127.51,2.44113968]
[1769296015581,2.49268921,127.53,127.5,2.44113968]
[1769296016107,4.60034349,127.52,127.5,2.44113968]
[1769296019305,2.49268921,127.52,127.5,2.44113968]
[1769296029609,2.49268921,127.52,127.5,2.24243558]
[1769296033797,4.40619755,127.54,127.5,2.24243558]
[1769296034529,2.29854327,127.53,127.5,2.24243558]
[1769296035022,4.40619755,127.55,127.51,2.41493458]
[1769296035216,2.29854327,127.55,127.52,2.41493458]
[1769296038024,2.29854327,127.54,127.52,2.41493458]
[1769296040127,4.40619755,127.55,127.52,2.41493458]
[1769296040425,2.29854327,127.55,127.52,2.41493458]
[1769296040624,2.29854327,127.56,127.53,2.41493458]
[1769296041325,2.29854327,127.56,127.53,4.52258886]
[1769296041628,2.29854327,127.56,127.53,2.41493458]
[1769296050220,2.29854327,127.55,127.53,2.41493458]
[1769296052331,2.29854327,127.55,127.52,2.41493458]
[1769296057640,2.29854327,127.55,127.51,12.28519844]
[1769296057936,2.29854327,127.55,127.52,2.33531755]
[1769296063644,2.29854327,127.55,127.52,4.44297183]
[1769296065042,2.29854327,127.55,127.52,2.33531755]
[1769296072153,2.29854327,127.55,127.52,10.1772031]
[1769296072770,2.29854327,127.55,127.52,12.28290922]
[1769296073859,2.41045668,127.57,127.55,2.33531755]
[1769296074032,2.41045668,127.57,127.54,2.33531755]